[Event "*** Titled Tuesday Blitz"]
[Site "Chess.com"]
[Date "2018.12.04"]
[Round "7"]
[White "bascheyaro"]
[Black "ckgchess"]
[Result "0-1"]
[WhiteElo "2769"]
[BlackElo "2610"]
[TimeControl "180+2"]
[EndTime "14:37:55 PST"]
[Termination "ckgchess won by resignation"]

1. d4 {[%clk 0:03:01.9]} 1... Nf6 {[%clk 0:02:56.5]} 2. c4 {[%clk 0:03:03]} 2...
e6 {[%clk 0:02:55.6]} 3. Nf3 {[%clk 0:03:04.4]} 3... b6 {[%clk 0:02:56.3]} 4. g3
{[%clk 0:03:05.2]} 4... Ba6 {[%clk 0:02:56.9]} 5. b3 {[%clk 0:03:05.9]} 5... b5
{[%clk 0:02:58.5]} 6. Bg2 {[%clk 0:03:03.8]} 6... bxc4 {[%clk 0:02:59.5]} 7. Ne5
{[%clk 0:03:05]} 7... Bb4+ {[%clk 0:02:55.4]} 8. Bd2 {[%clk 0:03:05.7]} 8...
cxb3 {[%clk 0:02:55.7]} 9. axb3 {[%clk 0:02:39.6]} 9... Bxd2+ {[%clk 0:02:54.6]}
10. Nxd2 {[%clk 0:02:34.3]} 10... d5 {[%clk 0:02:44.4]} 11. O-O {[%clk
0:02:30.1]} 11... O-O {[%clk 0:02:44.1]} 12. Re1 {[%clk 0:02:29.9]} 12... Nfd7
{[%clk 0:02:42.3]} 13. Nef3 {[%clk 0:02:18.3]} 13... c5 {[%clk 0:02:40.9]} 14.
e4 {[%clk 0:02:19]} 14... dxe4 {[%clk 0:02:18.9]} 15. Nxe4 {[%clk 0:02:17.7]}
15... cxd4 {[%clk 0:02:19.8]} 16. Nxd4 {[%clk 0:02:16.6]} 16... Nb6 {[%clk
0:01:47.9]} 17. Nc5 {[%clk 0:02:14.5]} 17... Bc8 {[%clk 0:01:36.3]} 18. Bxa8
{[%clk 0:02:01.6]} 18... Nxa8 {[%clk 0:01:37.3]} 19. Rxa7 {[%clk 0:02:02.2]}
19... Nb6 {[%clk 0:01:38.8]} 20. Nc2 {[%clk 0:01:31.4]} 20... Nd5 {[%clk
0:01:35.5]} 21. Ra1 {[%clk 0:01:28.5]} 21... Nd7 {[%clk 0:01:30.5]} 22. Nxd7
{[%clk 0:01:28.2]} 22... Qxd7 {[%clk 0:01:32.3]} 23. Ne3 {[%clk 0:01:29.2]}
23... Bb7 {[%clk 0:01:33.5]} 24. Nxd5 {[%clk 0:01:26.5]} 24... Bxd5 {[%clk
0:01:34.4]} 25. b4 {[%clk 0:01:25.8]} 25... Rb8 {[%clk 0:01:34.2]} 26. Qd4
{[%clk 0:01:24.8]} 26... Qb7 {[%clk 0:01:32.9]} 27. Ra7 {[%clk 0:01:23.4]} 27...
Qxb4 {[%clk 0:01:30.3]} 28. Qxb4 {[%clk 0:01:24.1]} 28... Rxb4 {[%clk
0:01:32.2]} 29. h3 {[%clk 0:01:21.9]} 29... h5 {[%clk 0:01:32.1]} 30. Rc7 {[%clk
0:01:17]} 30... h4 {[%clk 0:01:28.3]} 31. gxh4 {[%clk 0:01:05.9]} 31... Rxh4
{[%clk 0:01:28.7]} 32. Kh2 {[%clk 0:01:07.3]} 32... Rf4 {[%clk 0:01:29.4]} 33.
Re2 {[%clk 0:01:05.5]} 33... Rf3 {[%clk 0:01:27]} 34. Rb2 {[%clk 0:01:05.7]}
34... g6 {[%clk 0:01:23.8]} 35. Rc1 {[%clk 0:01:00.3]} 35... Kg7 {[%clk
0:01:24]} 36. Rg1 {[%clk 0:01:01.3]} 36... Rc3 {[%clk 0:01:13.4]} 37. Re2 {[%clk
0:00:58.6]} 37... f5 {[%clk 0:01:09.1]} 38. Re3 {[%clk 0:00:45.1]} 38... Rc2
{[%clk 0:01:07.4]} 39. Kg3 {[%clk 0:00:46.5]} 39... g5 {[%clk 0:01:03]} 40. f4
{[%clk 0:00:47.3]} 40... gxf4+ {[%clk 0:01:00.2]} 41. Kxf4+ {[%clk 0:00:48.4]}
41... Kf6 {[%clk 0:01:02.1]} 42. Rge1 {[%clk 0:00:23.4]} 42... Rc4+ {[%clk
0:00:44.2]} 43. Kg3 {[%clk 0:00:20.8]} 43... f4+ {[%clk 0:00:44.6]} 0-1

[Event "*** Titled Tuesday Blitz"]
[Site "Chess.com"]
[Date "2018.12.04"]
[Round "7"]
[White "cool4chess"]
[Black "Mikhail_Golubev"]
[Result "0-1"]
[WhiteElo "2251"]
[BlackElo "2463"]
[TimeControl "180+2"]
[EndTime "14:38:04 PST"]
[Termination "Mikhail_Golubev won by checkmate"]

1. e4 {[%clk 0:03:01.9]} 1... c5 {[%clk 0:03:00]} 2. Nf3 {[%clk 0:03:02.9]} 2...
d6 {[%clk 0:03:01]} 3. d4 {[%clk 0:03:03.8]} 3... cxd4 {[%clk 0:03:02.1]} 4.
Nxd4 {[%clk 0:03:05.7]} 4... Nf6 {[%clk 0:03:03]} 5. Nc3 {[%clk 0:03:07.4]} 5...
g6 {[%clk 0:03:03.9]} 6. Be3 {[%clk 0:03:06.9]} 6... Bg7 {[%clk 0:03:04.6]} 7.
f3 {[%clk 0:03:08.1]} 7... a6 {[%clk 0:03:05]} 8. Qd2 {[%clk 0:03:08.3]} 8... h5
{[%clk 0:03:03.7]} 9. O-O-O {[%clk 0:03:08.6]} 9... Nbd7 {[%clk 0:03:02.1]} 10.
Kb1 {[%clk 0:03:07.2]} 10... b5 {[%clk 0:03:01.9]} 11. Nd5 {[%clk 0:03:05.9]}
11... Bb7 {[%clk 0:02:59.4]} 12. Nb3 {[%clk 0:02:47.1]} 12... Nxd5 {[%clk
0:02:37.7]} 13. exd5 {[%clk 0:02:49]} 13... Nf6 {[%clk 0:02:38.1]} 14. Bd4
{[%clk 0:02:44.3]} 14... O-O {[%clk 0:02:25.2]} 15. Na5 {[%clk 0:02:44.6]} 15...
Bxd5 {[%clk 0:02:07]} 16. Bxf6 {[%clk 0:02:19.4]} 16... Bxf6 {[%clk 0:02:07.1]}
17. Qxd5 {[%clk 0:02:20.4]} 17... Qxa5 {[%clk 0:02:07.1]} 18. Bd3 {[%clk
0:02:21.6]} 18... Qb4 {[%clk 0:02:01.4]} 19. Qb3 {[%clk 0:02:12.3]} 19... Qxb3
{[%clk 0:02:01.3]} 20. axb3 {[%clk 0:02:11.7]} 20... d5 {[%clk 0:02:01.8]} 21.
Rhf1 {[%clk 0:02:04.6]} 21... e6 {[%clk 0:02:01]} 22. f4 {[%clk 0:01:52]} 22...
Rfb8 {[%clk 0:02:01.5]} 23. Rf3 {[%clk 0:01:43.3]} 23... a5 {[%clk 0:02:01.4]}
24. h3 {[%clk 0:01:34.9]} 24... h4 {[%clk 0:02:00.9]} 25. g4 {[%clk 0:01:33.8]}
25... hxg3 {[%clk 0:02:00.9]} 26. Rxg3 {[%clk 0:01:35]} 26... a4 {[%clk
0:02:01.3]} 27. f5 {[%clk 0:01:32.6]} 27... a3 {[%clk 0:01:40.6]} 28. c3 {[%clk
0:00:47.5]} 28... axb2 {[%clk 0:01:40.9]} 29. fxe6 {[%clk 0:00:43.7]} 29... Ra1+
{[%clk 0:01:34.9]} 30. Kc2 {[%clk 0:00:41.2]} 30... Rc8 {[%clk 0:01:14]} 31.
exf7+ {[%clk 0:00:37.9]} 31... Kf8 {[%clk 0:01:08.1]} 32. Bxg6 {[%clk
0:00:15.4]} 32... Bxc3 {[%clk 0:00:58.3]} 33. Rxc3 {[%clk 0:00:15]} 33... Rxc3+
{[%clk 0:00:54.7]} 34. Kxc3 {[%clk 0:00:16.9]} 34... Rxd1 {[%clk 0:00:55.1]} 35.
Kxb2 {[%clk 0:00:18.2]} 35... Rg1 {[%clk 0:00:52.5]} 36. Bd3 {[%clk 0:00:15.2]}
36... b4 {[%clk 0:00:53.2]} 37. h4 {[%clk 0:00:12.6]} 37... Rg2+ {[%clk
0:00:44.6]} 38. Kc1 {[%clk 0:00:12.6]} 38... Kxf7 {[%clk 0:00:44.7]} 39. h5
{[%clk 0:00:13.4]} 39... Rh2 {[%clk 0:00:44]} 40. Bg6+ {[%clk 0:00:13.7]} 40...
Ke6 {[%clk 0:00:44.9]} 41. Kb1 {[%clk 0:00:15]} 41... Ke5 {[%clk 0:00:45.9]} 42.
Kc1 {[%clk 0:00:15.5]} 42... Kd4 {[%clk 0:00:46.5]} 43. Bf7 {[%clk 0:00:16.2]}
43... Rf2 {[%clk 0:00:44.2]} 44. Bg6 {[%clk 0:00:16.2]} 44... Kc3 {[%clk
0:00:43.7]} 45. Kd1 {[%clk 0:00:17.4]} 45... Rh2 {[%clk 0:00:42.8]} 46. Bf7
{[%clk 0:00:17.8]} 46... d4 {[%clk 0:00:43.7]} 47. Ke1 {[%clk 0:00:18.5]} 47...
d3 {[%clk 0:00:44.5]} 48. Kd1 {[%clk 0:00:17.2]} 48... Rh1# {[%clk 0:00:44.9]}
0-1

[Event "*** Titled Tuesday Blitz"]
[Site "Chess.com"]
[Date "2018.12.04"]
[Round "7"]
[White "GABUZYAN_CHESSMOOD"]
[Black "vugarrasulov"]
[Result "0-1"]
[WhiteElo "2806"]
[BlackElo "2806"]
[TimeControl "180+2"]
[EndTime "14:38:05 PST"]
[Termination "vugarrasulov won by resignation"]

1. Nf3 {[%clk 0:03:01.9]} 1... Nf6 {[%clk 0:03:01.9]} 2. g3 {[%clk 0:03:02.4]}
2... g6 {[%clk 0:03:03.5]} 3. Bg2 {[%clk 0:03:04]} 3... Bg7 {[%clk 0:03:05.3]}
4. O-O {[%clk 0:03:05.5]} 4... O-O {[%clk 0:03:07.2]} 5. c4 {[%clk 0:03:07]}
5... d5 {[%clk 0:03:09]} 6. cxd5 {[%clk 0:03:08.1]} 6... Nxd5 {[%clk 0:03:10.7]}
7. Nc3 {[%clk 0:03:09.7]} 7... Nb6 {[%clk 0:03:11.9]} 8. d4 {[%clk 0:03:10.8]}
8... Nc6 {[%clk 0:03:12.8]} 9. e3 {[%clk 0:03:12.3]} 9... Re8 {[%clk 0:03:12.3]}
10. Nh4 {[%clk 0:03:13.3]} 10... e5 {[%clk 0:03:08.5]} 11. d5 {[%clk 0:03:14.5]}
11... Na5 {[%clk 0:03:07]} 12. Qc2 {[%clk 0:03:13.7]} 12... c6 {[%clk
0:03:03.9]} 13. Rd1 {[%clk 0:03:14.5]} 13... Bg4 {[%clk 0:02:54.4]} 14. f3
{[%clk 0:03:14.3]} 14... Bd7 {[%clk 0:02:53.9]} 15. dxc6 {[%clk 0:03:15.6]}
15... Nxc6 {[%clk 0:02:54]} 16. Bh3 {[%clk 0:03:10.3]} 16... Nd4 {[%clk
0:02:40.3]} 17. Qg2 {[%clk 0:02:56.6]} 17... Ne6 {[%clk 0:02:40.5]} 18. Qf1
{[%clk 0:02:46.8]} 18... Qe7 {[%clk 0:02:38.6]} 19. Ng2 {[%clk 0:02:24.6]} 19...
Bc6 {[%clk 0:02:38.7]} 20. Ne1 {[%clk 0:02:22.4]} 20... Rad8 {[%clk 0:02:37.3]}
21. Rxd8 {[%clk 0:02:05]} 21... Rxd8 {[%clk 0:02:38.2]} 22. Bxe6 {[%clk
0:02:04.3]} 22... Qxe6 {[%clk 0:02:39.1]} 23. e4 {[%clk 0:02:02.2]} 23... Qc4
{[%clk 0:02:20.6]} 24. Nc2 {[%clk 0:01:55.3]} 24... Qxf1+ {[%clk 0:02:15.2]} 25.
Kxf1 {[%clk 0:01:57.2]} 25... Na4 {[%clk 0:02:15.6]} 26. Nxa4 {[%clk 0:01:51.6]}
26... Bxa4 {[%clk 0:02:16.4]} 27. Ne3 {[%clk 0:01:53]} 27... Bf8 {[%clk
0:02:07.9]} 28. Nd5 {[%clk 0:01:49.4]} 28... f5 {[%clk 0:01:58.2]} 29. Be3
{[%clk 0:01:44]} 29... a6 {[%clk 0:01:50.5]} 30. Rc1 {[%clk 0:01:41.9]} 30...
Bc6 {[%clk 0:01:51.3]} 31. Bb6 {[%clk 0:01:32.1]} 31... Rc8 {[%clk 0:01:45.3]}
32. Ke1 {[%clk 0:01:31.5]} 32... Kf7 {[%clk 0:01:46.1]} 33. a3 {[%clk
0:01:27.8]} 33... Ke6 {[%clk 0:01:44.4]} 34. Nc7+ {[%clk 0:01:19.5]} 34... Kf7
{[%clk 0:01:40]} 35. Nd5 {[%clk 0:01:20.3]} 35... Bd6 {[%clk 0:01:38.2]} 36. Rd1
{[%clk 0:01:16.8]} 36... Ke6 {[%clk 0:01:38.4]} 37. Rd2 {[%clk 0:01:11]} 37...
h5 {[%clk 0:01:27.2]} 38. Nc3 {[%clk 0:01:05.8]} 38... Be8 {[%clk 0:01:17.5]}
39. Be3 {[%clk 0:01:01.1]} 39... Bxa3 {[%clk 0:01:14.8]} 40. exf5+ {[%clk
0:00:59.8]} 40... gxf5 {[%clk 0:01:15.4]} 41. f4 {[%clk 0:01:01.1]} 41... Bb4
{[%clk 0:01:12.4]} 42. fxe5 {[%clk 0:00:58]} 42... Rxc3 {[%clk 0:01:13.4]} 43.
bxc3 {[%clk 0:00:52.2]} 43... Bxc3 {[%clk 0:01:15.3]} 44. Bd4 {[%clk 0:00:52.9]}
44... Bxd2+ {[%clk 0:01:10.1]} 45. Kxd2 {[%clk 0:00:54.8]} 45... Kd5 {[%clk
0:01:11.2]} 46. Bc3 {[%clk 0:00:49.8]} 46... b5 {[%clk 0:01:08.3]} 47. Kc2
{[%clk 0:00:47.5]} 47... Kc4 {[%clk 0:01:03.8]} 48. e6 {[%clk 0:00:46.9]} 48...
b4 {[%clk 0:01:04.4]} 49. Bd2 {[%clk 0:00:44.1]} 49... a5 {[%clk 0:01:05.4]} 50.
e7 {[%clk 0:00:43.5]} 50... a4 {[%clk 0:01:06.3]} 51. Kb2 {[%clk 0:00:44.9]}
51... a3+ {[%clk 0:01:05.9]} 52. Ka1 {[%clk 0:00:46.3]} 52... b3 {[%clk
0:01:02]} 53. Bc1 {[%clk 0:00:47.5]} 53... b2+ {[%clk 0:01:01.5]} 54. Bxb2
{[%clk 0:00:48.6]} 54... axb2+ {[%clk 0:01:03.4]} 55. Kxb2 {[%clk 0:00:50.5]}
55... Kd5 {[%clk 0:01:05.1]} 56. Kb3 {[%clk 0:00:52.2]} 56... Ke6 {[%clk
0:01:06.4]} 57. Kc4 {[%clk 0:00:53.8]} 57... Kxe7 {[%clk 0:01:07.5]} 58. Kd4
{[%clk 0:00:55.6]} 58... Kf6 {[%clk 0:01:08.9]} 59. Ke3 {[%clk 0:00:57.1]} 59...
Kg5 {[%clk 0:01:10.1]} 60. Kf3 {[%clk 0:00:58.6]} 60... Bc6+ {[%clk 0:01:10.5]}
61. Ke3 {[%clk 0:00:59.8]} 61... Kg4 {[%clk 0:01:11.6]} 62. Kf2 {[%clk
0:01:01.4]} 62... Kh3 {[%clk 0:01:10.2]} 63. Kg1 {[%clk 0:01:02.5]} 63... Be4
{[%clk 0:01:11.1]} 64. g4 {[%clk 0:01:03.4]} 0-1

[Event "*** Titled Tuesday Blitz"]
[Site "Chess.com"]
[Date "2018.12.04"]
[Round "7"]
[White "ShadowJolteon"]
[Black "Atanejhad"]
[Result "1-0"]
[WhiteElo "2415"]
[BlackElo "2276"]
[TimeControl "180+2"]
[EndTime "14:38:05 PST"]
[Termination "ShadowJolteon won on time"]

1. d4 {[%clk 0:03:01.9]} 1... Nf6 {[%clk 0:02:58.4]} 2. c4 {[%clk 0:03:01.4]}
2... g6 {[%clk 0:02:59.7]} 3. Nc3 {[%clk 0:03:01.7]} 3... Bg7 {[%clk 0:03:01]}
4. e4 {[%clk 0:03:02.7]} 4... d6 {[%clk 0:03:02.6]} 5. f3 {[%clk 0:03:04.6]}
5... O-O {[%clk 0:03:04.5]} 6. Be3 {[%clk 0:03:01.3]} 6... Nbd7 {[%clk
0:03:04.7]} 7. Nge2 {[%clk 0:03:01.6]} 7... c6 {[%clk 0:03:06.3]} 8. Qd2 {[%clk
0:02:59.8]} 8... a6 {[%clk 0:03:07.8]} 9. g4 {[%clk 0:02:57.9]} 9... b5 {[%clk
0:03:09.1]} 10. h4 {[%clk 0:02:59.3]} 10... e5 {[%clk 0:02:51.5]} 11. d5 {[%clk
0:02:41.7]} 11... cxd5 {[%clk 0:02:26.7]} 12. cxd5 {[%clk 0:02:43.6]} 12... h5
{[%clk 0:02:23.6]} 13. g5 {[%clk 0:02:32.8]} 13... Nh7 {[%clk 0:02:24.7]} 14.
Ng3 {[%clk 0:02:30.8]} 14... Nc5 {[%clk 0:02:14.8]} 15. b4 {[%clk 0:02:27.4]}
15... Na4 {[%clk 0:02:15.2]} 16. Nxa4 {[%clk 0:02:26.1]} 16... bxa4 {[%clk
0:02:17.1]} 17. Rc1 {[%clk 0:02:21.2]} 17... Bd7 {[%clk 0:02:18.4]} 18. Bd3
{[%clk 0:02:19.4]} 18... Kh8 {[%clk 0:02:15]} 19. O-O {[%clk 0:02:13]} 19... f6
{[%clk 0:02:13.1]} 20. Kg2 {[%clk 0:02:09.2]} 20... Bb5 {[%clk 0:02:08.6]} 21.
Bxb5 {[%clk 0:01:58]} 21... axb5 {[%clk 0:02:10.5]} 22. Rc6 {[%clk 0:01:59.6]}
22... fxg5 {[%clk 0:02:00.6]} 23. hxg5 {[%clk 0:02:01.5]} 23... Rf7 {[%clk
0:01:58]} 24. Rfc1 {[%clk 0:01:57.5]} 24... Bf8 {[%clk 0:01:55.3]} 25. Ne2
{[%clk 0:01:49.6]} 25... Be7 {[%clk 0:01:52.9]} 26. Rc7 {[%clk 0:01:45.7]} 26...
Kg8 {[%clk 0:01:49.1]} 27. f4 {[%clk 0:01:40.1]} 27... Qf8 {[%clk 0:01:46.5]}
28. fxe5 {[%clk 0:01:36.3]} 28... Nxg5 {[%clk 0:01:40]} 29. Nd4 {[%clk
0:01:32.5]} 29... Nxe4 {[%clk 0:01:27.7]} 30. Qe2 {[%clk 0:01:32.5]} 30... dxe5
{[%clk 0:01:26]} 31. Ne6 {[%clk 0:01:29.5]} 31... Qe8 {[%clk 0:01:26.4]} 32. Qc2
{[%clk 0:01:28.4]} 32... Nf6 {[%clk 0:00:47.5]} 33. Qxg6+ {[%clk 0:01:26.7]}
33... Kh8 {[%clk 0:00:49]} 34. Bh6 {[%clk 0:01:15.2]} 34... Qg8 {[%clk
0:00:49.6]} 35. Rc8 {[%clk 0:00:56.9]} 35... Rxc8 {[%clk 0:00:23.8]} 36. Rxc8
{[%clk 0:00:58.8]} 36... Ne8 {[%clk 0:00:24.9]} 37. Rxe8 {[%clk 0:00:32.5]}
37... Qxe8 {[%clk 0:00:26.8]} 38. Bg7+ {[%clk 0:00:33.1]} 1-0

[Event "*** Titled Tuesday Blitz"]
[Site "Chess.com"]
[Date "2018.12.04"]
[Round "7"]
[White "sandager"]
[Black "artichaud"]
[Result "0-1"]
[WhiteElo "1963"]
[BlackElo "2138"]
[TimeControl "180+2"]
[EndTime "14:38:12 PST"]
[Termination "artichaud won on time"]

1. d4 {[%clk 0:03:01]} 1... e6 {[%clk 0:03:01.1]} 2. Nf3 {[%clk 0:03:01.5]} 2...
Nf6 {[%clk 0:03:00.7]} 3. g3 {[%clk 0:03:01.9]} 3... b6 {[%clk 0:02:59.1]} 4.
Bg2 {[%clk 0:03:03.1]} 4... Bb7 {[%clk 0:03:00.7]} 5. O-O {[%clk 0:03:04.2]}
5... c5 {[%clk 0:03:00.7]} 6. c4 {[%clk 0:02:59]} 6... cxd4 {[%clk 0:03:01.2]}
7. Qxd4 {[%clk 0:02:59.3]} 7... d6 {[%clk 0:03:00.3]} 8. Nc3 {[%clk 0:02:59]}
8... a6 {[%clk 0:03:01.3]} 9. Qd3 {[%clk 0:02:57.9]} 9... Nbd7 {[%clk
0:03:02.2]} 10. Bf4 {[%clk 0:02:54.6]} 10... Qc7 {[%clk 0:02:46.9]} 11. Rfd1
{[%clk 0:02:50.4]} 11... Ne5 {[%clk 0:02:41.1]} 12. Nxe5 {[%clk 0:02:39.8]}
12... Bxg2 {[%clk 0:02:41.3]} 13. Nxf7 {[%clk 0:02:17.2]} 13... Kxf7 {[%clk
0:02:26.7]} 14. Kxg2 {[%clk 0:02:17.2]} 14... Rd8 {[%clk 0:02:24.7]} 15. Ne4
{[%clk 0:02:11.5]} 15... Qc6 {[%clk 0:02:15.3]} 16. f3 {[%clk 0:02:10.9]} 16...
Nxe4 {[%clk 0:02:15.9]} 17. fxe4 {[%clk 0:02:11]} 17... Be7 {[%clk 0:02:16.3]}
18. Rf1 {[%clk 0:02:01.1]} 18... Kg8 {[%clk 0:02:09.7]} 19. Rad1 {[%clk
0:01:46.7]} 19... h5 {[%clk 0:01:58.2]} 20. h4 {[%clk 0:01:39.8]} 20... Rh7
{[%clk 0:01:09.9]} 21. Kh2 {[%clk 0:01:38.6]} 21... g6 {[%clk 0:01:07.3]} 22. e5
{[%clk 0:01:37.8]} 22... dxe5 {[%clk 0:00:56.2]} 23. Qxg6+ {[%clk 0:01:37.5]}
23... Rg7 {[%clk 0:00:56.4]} 24. Rxd8+ {[%clk 0:00:57.7]} 24... Bxd8 {[%clk
0:00:58.3]} 25. Qxh5 {[%clk 0:00:56.4]} 25... exf4 {[%clk 0:00:57.7]} 26. Rxf4
{[%clk 0:00:55.1]} 26... Bc7 {[%clk 0:00:56.1]} 27. Rg4 {[%clk 0:00:32.5]} 27...
Rxg4 {[%clk 0:00:54.9]} 28. Qxg4+ {[%clk 0:00:32.3]} 28... Kf7 {[%clk
0:00:56.8]} 29. Qh5+ {[%clk 0:00:31.9]} 29... Ke7 {[%clk 0:00:56.5]} 30. Qh7+
{[%clk 0:00:22.6]} 30... Kd8 {[%clk 0:00:51.2]} 31. Qh8+ {[%clk 0:00:21.1]}
31... Kd7 {[%clk 0:00:51.4]} 32. Qd4+ {[%clk 0:00:15.3]} 32... Kc8 {[%clk
0:00:50.4]} 33. h5 {[%clk 0:00:16.2]} 33... Qe8 {[%clk 0:00:36.9]} 34. Qe4
{[%clk 0:00:12.2]} 34... Qxh5+ {[%clk 0:00:24.3]} 35. Kg2 {[%clk 0:00:12.7]}
35... Qf5 {[%clk 0:00:17.4]} 36. Qc6 {[%clk 0:00:08.6]} 36... Qe5 {[%clk
0:00:14.3]} 37. Qf3 {[%clk 0:00:02]} 37... Qxb2 {[%clk 0:00:12.5]} 0-1

[Event "*** Titled Tuesday Blitz"]
[Site "Chess.com"]
[Date "2018.12.04"]
[Round "7"]
[White "SanchezKelvin"]
[Black "cherryandmint"]
[Result "1-0"]
[WhiteElo "2504"]
[BlackElo "2682"]
[TimeControl "180+2"]
[EndTime "14:38:17 PST"]
[Termination "SanchezKelvin won by resignation"]

1. d4 {[%clk 0:03:01.9]} 1... Nf6 {[%clk 0:03:00.6]} 2. Nf3 {[%clk 0:03:02.4]}
2... d5 {[%clk 0:03:01.3]} 3. c4 {[%clk 0:03:00.7]} 3... e6 {[%clk 0:03:02.4]}
4. Nc3 {[%clk 0:03:02.4]} 4... Be7 {[%clk 0:03:01]} 5. Bg5 {[%clk 0:03:02.9]}
5... h6 {[%clk 0:03:01.6]} 6. Bh4 {[%clk 0:03:01.6]} 6... O-O {[%clk 0:03:02]}
7. e3 {[%clk 0:02:54]} 7... b6 {[%clk 0:03:03.1]} 8. Qc2 {[%clk 0:02:46.9]} 8...
Bb7 {[%clk 0:03:02.1]} 9. Rg1 {[%clk 0:02:45]} 9... Ne4 {[%clk 0:02:56.6]} 10.
Bxe7 {[%clk 0:02:40.2]} 10... Qxe7 {[%clk 0:02:58.5]} 11. O-O-O {[%clk
0:02:32.4]} 11... Nd7 {[%clk 0:02:48.1]} 12. Kb1 {[%clk 0:02:26.5]} 12... c5
{[%clk 0:02:45.3]} 13. g4 {[%clk 0:02:00.7]} 13... Rac8 {[%clk 0:02:23.4]} 14.
g5 {[%clk 0:01:42.6]} 14... Nxg5 {[%clk 0:02:18.2]} 15. Nxg5 {[%clk 0:01:39.7]}
15... hxg5 {[%clk 0:02:20.1]} 16. f4 {[%clk 0:01:33.2]} 16... cxd4 {[%clk
0:02:14.7]} 17. Rxd4 {[%clk 0:01:23.1]} 17... gxf4 {[%clk 0:01:31.2]} 18. Rxf4
{[%clk 0:01:18.3]} 18... f5 {[%clk 0:01:20.8]} 19. cxd5 {[%clk 0:00:57.5]} 19...
Bxd5 {[%clk 0:01:08.3]} 20. Ba6 {[%clk 0:00:50.6]} 20... Rc5 {[%clk 0:00:29.2]}
21. b4 {[%clk 0:00:49]} 21... Be4 {[%clk 0:00:28.5]} 22. Rxe4 {[%clk 0:00:45.2]}
22... Rxc3 {[%clk 0:00:29.6]} 23. Qxc3 {[%clk 0:00:31.7]} 23... fxe4 {[%clk
0:00:30.6]} 24. Bc4 {[%clk 0:00:29.7]} 24... Rf2 {[%clk 0:00:30.3]} 25. Bxe6+
{[%clk 0:00:27.7]} 25... Kf8 {[%clk 0:00:21.5]} 26. Qc8+ {[%clk 0:00:26.4]}
26... Qe8 {[%clk 0:00:20.3]} 27. Bxd7 {[%clk 0:00:23.7]} 27... Qxc8 {[%clk
0:00:21.2]} 28. Bxc8 {[%clk 0:00:24.6]} 28... Rxh2 {[%clk 0:00:22.1]} 29. Bf5
{[%clk 0:00:23.5]} 29... Re2 {[%clk 0:00:19]} 30. Rg3 {[%clk 0:00:23.4]} 30...
Re1+ {[%clk 0:00:19]} 31. Kb2 {[%clk 0:00:23.2]} 31... Re2+ {[%clk 0:00:19]} 32.
Kb3 {[%clk 0:00:23.8]} 32... Ke7 {[%clk 0:00:20.4]} 33. Bxe4 {[%clk 0:00:24.2]}
33... g5 {[%clk 0:00:21.1]} 34. Bd3 {[%clk 0:00:24.5]} 34... Re1 {[%clk
0:00:21.5]} 35. Rxg5 {[%clk 0:00:23.6]} 35... Rxe3 {[%clk 0:00:22.4]} 36. Kc3
{[%clk 0:00:24.3]} 36... Kd6 {[%clk 0:00:23.6]} 37. Rg6+ {[%clk 0:00:24.3]}
37... Kc7 {[%clk 0:00:24.5]} 38. a4 {[%clk 0:00:24.4]} 38... Rh3 {[%clk
0:00:23.3]} 39. Rg7+ {[%clk 0:00:23.8]} 39... Kb8 {[%clk 0:00:24.3]} 40. Kd4
{[%clk 0:00:22.2]} 40... Rh5 {[%clk 0:00:24.6]} 41. Be4 {[%clk 0:00:21.2]} 1-0

[Event "*** Titled Tuesday Blitz"]
[Site "Chess.com"]
[Date "2018.12.04"]
[Round "7"]
[White "burbur555"]
[Black "RiskyDecision"]
[Result "1-0"]
[WhiteElo "2569"]
[BlackElo "2411"]
[TimeControl "180+2"]
[EndTime "14:38:22 PST"]
[Termination "burbur555 won by resignation"]

1. d4 {[%clk 0:03:01.9]} 1... Nf6 {[%clk 0:03:00]} 2. Nf3 {[%clk 0:03:02.9]}
2... d5 {[%clk 0:03:00.7]} 3. g3 {[%clk 0:03:04]} 3... c5 {[%clk 0:03:00.7]} 4.
Bg2 {[%clk 0:03:03.9]} 4... cxd4 {[%clk 0:03:00.8]} 5. O-O {[%clk 0:03:04.7]}
5... Bd7 {[%clk 0:03:00.8]} 6. b3 {[%clk 0:03:01.3]} 6... Nc6 {[%clk 0:02:37.5]}
7. Nxd4 {[%clk 0:03:01.7]} 7... e5 {[%clk 0:02:30.1]} 8. Nxc6 {[%clk 0:03:02.3]}
8... Bxc6 {[%clk 0:02:16.3]} 9. c4 {[%clk 0:03:02.5]} 9... dxc4 {[%clk
0:02:10.5]} 10. Bxc6+ {[%clk 0:03:01.9]} 10... bxc6 {[%clk 0:02:12]} 11. Qc2
{[%clk 0:03:02.9]} 11... Qd5 {[%clk 0:01:56.3]} 12. bxc4 {[%clk 0:02:49.8]}
12... Qe6 {[%clk 0:01:52.2]} 13. Bg5 {[%clk 0:02:39.3]} 13... Be7 {[%clk
0:01:47]} 14. Bxf6 {[%clk 0:02:37.4]} 14... Bxf6 {[%clk 0:01:39.6]} 15. Nd2
{[%clk 0:02:37.8]} 15... e4 {[%clk 0:01:31.6]} 16. Rab1 {[%clk 0:02:37]} 16...
e3 {[%clk 0:01:31.9]} 17. Ne4 {[%clk 0:02:32.1]} 17... exf2+ {[%clk 0:01:32.1]}
18. Kg2 {[%clk 0:02:32.4]} 18... Bd4 {[%clk 0:01:15.6]} 19. Rbd1 {[%clk
0:02:29.5]} 19... Be5 {[%clk 0:01:04.5]} 20. Ng5 {[%clk 0:02:12.3]} 20... Qg6
{[%clk 0:00:57.5]} 21. Qxg6 {[%clk 0:02:11.4]} 21... hxg6 {[%clk 0:00:57.7]} 22.
Rxf2 {[%clk 0:02:11.8]} 22... f6 {[%clk 0:00:42.7]} 23. Nf3 {[%clk 0:02:02]}
23... Bc7 {[%clk 0:00:39.2]} 24. e4 {[%clk 0:01:58.7]} 24... Rd8 {[%clk
0:00:37.6]} 25. Rb1 {[%clk 0:01:47.7]} 25... Bb6 {[%clk 0:00:36.2]} 26. Rc2
{[%clk 0:01:41.5]} 26... Bc5 {[%clk 0:00:35]} 27. Rb7 {[%clk 0:01:40.6]} 27...
Rd7 {[%clk 0:00:34.7]} 28. Rcb2 {[%clk 0:01:40.7]} 28... Bb6 {[%clk 0:00:27]}
29. Rb8+ {[%clk 0:01:37.6]} 29... Rd8 {[%clk 0:00:27.7]} 30. Rxd8+ {[%clk
0:01:38.4]} 30... Kxd8 {[%clk 0:00:28.3]} 31. c5 {[%clk 0:01:39.1]} 31... Bc7
{[%clk 0:00:28.7]} 32. Rb7 {[%clk 0:01:38.9]} 32... Kc8 {[%clk 0:00:25.6]} 33.
Rxa7 {[%clk 0:01:39.2]} 33... Kb8 {[%clk 0:00:25]} 34. Ra4 {[%clk 0:01:39.5]}
34... Rd8 {[%clk 0:00:25.3]} 35. Rd4 {[%clk 0:01:39.7]} 35... Kb7 {[%clk
0:00:20.8]} 36. Rxd8 {[%clk 0:01:38.2]} 36... Bxd8 {[%clk 0:00:22.1]} 37. Nd4
{[%clk 0:01:38.6]} 37... Be7 {[%clk 0:00:21.1]} 38. Ne6 {[%clk 0:01:38.7]} 38...
Ka6 {[%clk 0:00:22]} 39. h4 {[%clk 0:01:32.9]} 39... Kb5 {[%clk 0:00:21.8]} 40.
g4 {[%clk 0:01:33.1]} 40... Bxc5 {[%clk 0:00:20.8]} 41. Nxg7 {[%clk 0:01:25.9]}
41... Bd4 {[%clk 0:00:19.1]} 42. h5 {[%clk 0:01:23.5]} 42... gxh5 {[%clk
0:00:19.7]} 43. gxh5 {[%clk 0:01:24]} 43... f5 {[%clk 0:00:16.7]} 44. Nxf5
{[%clk 0:01:23.7]} 44... Be5 {[%clk 0:00:16.1]} 45. Kf3 {[%clk 0:01:23.4]} 45...
Kb4 {[%clk 0:00:15.3]} 46. Ne3 {[%clk 0:01:21.9]} 46... c5 {[%clk 0:00:14.7]}
47. Ke2 {[%clk 0:01:22.1]} 47... c4 {[%clk 0:00:13.4]} 48. h6 {[%clk 0:01:14.1]}
48... c3 {[%clk 0:00:09.6]} 49. Kd3 {[%clk 0:01:13.2]} 49... Ka3 {[%clk
0:00:08.2]} 50. Nc4+ {[%clk 0:01:09.9]} 50... Kxa2 {[%clk 0:00:08.6]} 51. Nxe5
{[%clk 0:01:10.3]} 51... Kb3 {[%clk 0:00:09.6]} 52. Nf3 {[%clk 0:01:07.3]} 52...
Kb2 {[%clk 0:00:08.4]} 53. Nd4 {[%clk 0:01:06.9]} 1-0